bitfinex-derivatives/quotes_ETHF0:USTF0_20250329
["timestamp","ask_amount","ask_price","bid_price","bid_amount"]
[1743220358270,4.1204,1900.3,1900.2,3.17232]
[1743220358469,4.1204,1900.3,1900.1,3.2078]
[1743220358470,5.17326,1900.3,1900.1,1.05296]
[1743220358765,1.3692,1900.2,1900.1,1.05296]
[1743220359164,3.455,1900.2,1900.1,4.26076]
[1743220359669,3.455,1900.2,1900.1,5.66696]
[1743220360668,4.9156,1900.2,1900.1,5.66696]
[1743220361769,4.9156,1900.2,1900.1,2.45916]
[1743220371263,3.455,1900.2,1900.1,2.45916]
[1743220374380,3.455,1900.2,1900.1,1.05296]
[1743220374681,4.1316,1900.2,1900.1,1.05296]
[1743220374867,4.1316,1900.2,1900.1,2.41426]
[1743220383878,0.6766,1900.2,1900.1,2.41426]
[1743220384082,3.455,1900.2,1900.1,2.41426]
[1743220384281,3.455,1900.2,1900.1,3.10256]
[1743220384481,1.3513,1900.3,1900.2,1.05292]
[1743220384686,4.8063,1900.3,1900.2,5.72642]
[1743220385178,1.3513,1900.3,1900.2,5.72642]
[1743220385373,4.8063,1900.3,1900.2,5.72642]
[1743220387386,1.3513,1900.3,1900.2,5.72642]
[1743220387588,4.8053,1900.3,1900.2,5.72642]
[1743220392488,4.8053,1900.3,1900.2,4.26072]
[1743220392793,4.8053,1900.3,1900.2,1.05292]
[1743220397801,9.06596,1900.3,1900.1,1.05295]
[1743220398000,0.7236,1900.2,1900.1,1.05295]
[1743220398297,2.1204,1900.2,1900.1,1.05295]
[1743220399999,1.05297,1900.1,1900.0,0.00789328]
[1743220400194,3.15977,1900.1,1900.0,0.00789328]
[1743220403598,6.36757,1900.1,1900.0,0.00789328]
[1743220403999,1.0531,1899.9,1899.5,3.62660336]
[1743220404200,3.454,1899.8,1899.7,1.05318]
[1743220404400,1.4163,1899.8,1899.7,1.05318]
[1743220404707,4.26077,1900.1,1899.9,1.05305]
[1743220404903,4.8703,1900.0,1899.9,1.05305]
[1743220405201,4.8703,1900.0,1899.8,1.05311]
[1743220405504,1.4163,1899.9,1899.8,1.05311]
[1743220405904,1.4163,1899.9,1899.8,1.44949671]
[1743220409507,4.8703,1899.9,1899.8,1.44949671]
[1743220411507,3.454,1899.9,1899.8,1.44949671]
[1743220412906,3.454,1899.9,1899.8,1.44952671]
[1743220413801,2.1319,1900.1,1899.8,1.44952671]
[1743220414001,2.1319,1900.1,1900.0,1.05303]
[1743220414206,5.5859,1900.1,1900.0,1.05303]
[1743220420227,6.63887,1900.1,1900.0,1.05303]
[1743220420422,6.63887,1900.1,1899.8,0.39817417]
[1743220420623,1.3467,1900.0,1899.9,1.05308]
[1743220422216,1.05308,1899.9,1899.8,0.40132247]
[1743220422412,1.05308,1899.9,1899.7,1.05316]
[1743220422616,5.4957,1899.8,1899.7,1.05316]
[1743220423126,5.4957,1899.8,1899.7,2.42926]
[1743220424332,5.4957,1899.8,1899.6,1.72332]
[1743220424333,6.54884,1899.8,1899.6,1.72332]
[1743220424530,1.3481,1899.7,1899.6,3.14272]
[1743220425032,1.3481,1899.7,1899.6,2.0895]
[1743220425431,1.3481,1899.7,1899.6,3.14275]
[1743220427838,3.2078,1900.1,1900.0,1.05303]
[1743220428136,46.74241813,1900.4,1900.3,1.05286]
[1743220428326,2.1341,1900.7,1900.6,1.05269]
[1743220428531,5.5881,1900.7,1900.6,1.05269]
[1743220428733,4.8569,1900.7,1900.6,1.05269]
[1743220429037,22.50022116,1900.8,1900.7,1.05264]
[1743220429246,25.95422116,1900.8,1900.7,4.26044]
[1743220429539,25.95422116,1900.8,1900.7,6.40394966]
[1743220429738,25.95422116,1900.8,1900.7,6.82032457]
[1743220429939,25.95422116,1900.8,1900.7,6.40394966]
[1743220430441,3.454,1900.8,1900.7,6.40394966]
[1743220431437,3.454,1900.8,1900.7,5.70204]
[1743220431639,3.454,1900.8,1900.7,6.40292972]
[1743220433341,0.00789328,1900.9,1900.8,1.05258]
[1743220433644,3.46089328,1900.9,1900.8,1.75346972]
[1743220433939,4.79569328,1900.9,1900.8,1.75346972]
[1743220435441,4.79569328,1900.9,1900.8,1.75232132]
[1743220437440,4.79569328,1900.9,1900.8,1.75175628]
[1743220438338,4.79569328,1900.9,1900.8,3.20245628]
[1743220439446,3.46089328,1900.9,1900.8,3.20245628]
[1743220439738,0.00789328,1900.9,1900.8,10.09269427]
[1743220439944,0.00789328,1900.9,1900.8,10.81369427]
[1743220441848,0.00789328,1900.9,1900.8,10.09269427]
[1743220442549,0.00789328,1900.9,1900.8,9.39351799]
[1743220442748,0.00789328,1900.9,1900.8,10.09071883]
[1743220446450,0.00789328,1900.9,1900.8,10.09073337]
[1743220450652,0.00789328,1900.9,1900.8,10.09053516]
[1743220451450,0.00789328,1900.9,1900.8,12.59053516]
[1743220451652,0.00789328,1900.9,1900.8,13.29883516]
[1743220452458,0.00789328,1900.9,1900.8,13.29905258]
[1743220452658,0.00789328,1900.9,1900.8,10.79905258]
[1743220455253,0.00789328,1900.9,1900.8,14.00685258]
[1743220456550,0.00789328,1900.9,1900.8,14.53486575]
[1743220457359,3.9426,1901.5,1901.4,1.05225]
[1743220457563,3.9426,1901.5,1901.4,1.75109776]
[1743220457564,7.3936,1901.5,1901.4,1.75109776]
[1743220458655,8.7704,1901.5,1901.4,1.75109776]
[1743220458853,5.3194,1901.5,1901.4,1.75109776]
[1743220459057,5.5626,1901.5,1901.4,1.75109776]
[1743220459261,1.3768,1901.5,1901.4,11.89982899]
[1743220459465,0.00789328,1901.6,1901.5,1.0522]
[1743220459754,0.00789328,1901.6,1901.5,4.25858272]
[1743220460359,0.00789328,1901.6,1901.5,4.25854482]
[1743220460762,0.00789328,1901.6,1901.5,11.09023908]
[1743220460963,0.00789328,1901.6,1901.5,10.40533908]
[1743220462262,0.00789328,1901.6,1901.5,10.40425618]
[1743220468167,0.00789328,1901.6,1901.5,10.40373757]
[1743220470066,1.3768,1901.7,1901.6,1.05214]
[1743220470259,0.6899,1901.8,1901.7,1.05209]
[1743220470464,0.6899,1901.8,1901.7,1.74929835]
[1743220470662,0.6899,1901.8,1901.7,10.08670631]
[1743220472771,0.6899,1901.8,1901.7,13.29450631]
[1743220473472,2.0907,1901.8,1901.7,13.29450631]
[1743220474370,2.0907,1901.8,1901.7,12.59729796]
[1743220474569,2.0907,1901.8,1901.7,13.29423421]
[1743220476172,2.0907,1901.8,1901.7,13.82072905]
[1743220476373,2.0907,1901.8,1901.7,13.29432905]
[1743220476672,2.0907,1901.8,1901.7,13.82072905]
[1743220477570,1.4008,1901.8,1901.7,13.82072905]
[1743220480082,1.4008,1901.8,1901.7,13.82111249]
[1743220482183,1.4008,1901.8,1901.7,13.8212071]
[1743220484884,0.00789328,1901.9,1901.8,1.05203]
[1743220485184,0.00789328,1901.9,1901.8,3.16563914]
[1743220485380,0.00789328,1901.9,1901.8,9.85025187]
[1743220495878,0.00789328,1901.9,1901.8,9.85336903]
[1743220496484,0.00789328,1901.9,1901.8,10.37976903]
[1743220497593,2.04579328,1901.9,1901.8,3.1687563]
[1743220497992,2.04579328,1901.9,1901.8,3.16902085]
[1743220499894,2.04579328,1901.9,1901.8,3.16918712]
[1743220500993,2.04579328,1901.9,1901.8,1.75308712]
[1743220501186,2.04579328,1901.9,1901.8,1.75312968]
[1743220501993,2.04579328,1901.9,1901.8,3.15342968]
[1743220503194,2.04579328,1901.9,1901.8,3.15334419]
[1743220503587,2.04579328,1901.9,1901.8,1.75304419]
[1743220504192,2.04579328,1901.9,1901.8,0.70101419]
[1743220504393,2.04579328,1901.9,1901.6,1.90519328]
[1743220504394,5.59778328,1901.9,1901.6,1.06002328]
[1743220504596,3.2078,1901.7,1901.5,0.39933496]
[1743220504892,3.2078,1901.7,1901.5,1.0522]
[1743220504893,1.4123,1901.6,1901.5,1.0522]
[1743220505396,3.9123,1901.6,1901.4,1.05221]
[1743220505597,4.1253,1901.5,1901.4,1.05221]
[1743220505897,5.5376,1901.5,1901.4,1.05221]
[1743220512097,5.5376,1901.5,1901.3,2.8669073]
[1743220512395,1.3614,1901.4,1901.3,2.8669073]
[1743220513092,4.5692,1901.4,1901.3,0.4081273]
[1743220513297,1.3614,1901.4,1901.3,1.4604373]
[1743220514300,1.3614,1901.4,1901.3,2.9190373]
[1743220516392,1.3614,1901.4,1901.3,3.61263994]
[1743220516902,1.3614,1901.4,1901.3,3.6126355]
[1743220518706,1.3614,1901.4,1901.3,3.61209075]
[1743220519898,2.41365,1901.4,1901.3,2.55978075]
[1743220520097,2.41365,1901.4,1901.3,0.70094673]
[1743220520298,5.62145,1901.4,1901.3,0.70094673]
[1743220520499,1.05231,1901.3,1901.2,1e-08]
[1743220520699,3.16611,1901.3,1901.2,1e-08]
[1743220520902,5.66611,1901.3,1901.2,1e-08]
[1743220521708,1.05248,1901.0,1900.8,2.41114]
[1743220521905,4.8588,1900.9,1900.8,2.41114]
[1743220522111,4.8588,1900.9,1900.7,1.4315]
[1743220522112,1.05258,1900.8,1900.7,1.3283]
[1743220522307,2.52328,1900.8,1900.7,1.3283]
[1743220523507,2.52328,1900.8,1900.7,1.71588884]
[1743220523709,3.9707,1900.8,1900.3,0.09154847]
[1743220524007,5.73114,1900.7,1900.5,1.05272]
[1743220524205,5.73114,1900.7,1900.6,2.38099]
[1743220524206,4.6785,1900.7,1900.6,2.38099]
[1743220524405,8.1255,1900.7,1900.6,2.38099]
[1743220525506,9.17814,1900.7,1900.6,1.3283]
[1743220526607,9.17814,1900.7,1900.3,1.45521532]
[1743220526608,1.05271,1900.6,1900.3,1.45521532]
[1743220526815,2.126,1900.6,1900.2,1.4499]
[1743220527111,2.126,1900.6,1900.2,0.722]
[1743220527112,3.2078,1900.4,1900.2,0.722]
[1743220527313,3.2078,1900.4,1900.3,2.41116]
[1743220527505,6.6548,1900.4,1900.3,2.41116]
[1743220529816,3.447,1900.4,1900.3,2.41116]
[1743220530219,51.8188,1900.6,1900.3,1.3583]
[1743220530514,51.8188,1900.6,1900.5,1.05275]
[1743220530709,48.611,1900.6,1900.5,1.05275]
[1743220530909,3.2078,1900.8,1900.5,1.05275]
[1743220530910,0.00789328,1900.9,1900.8,1.05258]
[1743220531310,3.45589328,1900.9,1900.8,1.05258]
[1743220531517,3.45589328,1900.9,1900.8,1.76948]
[1743220532311,0.00789328,1900.9,1900.8,1.76948]
[1743220532511,3.45589328,1900.9,1900.8,1.76948]
[1743220533109,3.45589328,1900.9,1900.8,4.97728]
[1743220533509,3.45589328,1900.9,1900.8,1.76948]
[1743220536019,3.45589328,1900.9,1900.8,2.29588]
[1743220536323,3.45589328,1900.9,1900.8,0.7169]
[1743220536620,4.50843328,1900.9,1900.7,1.3688]
[1743220536926,5.20843328,1900.9,1900.8,1.3525]
[1743220537921,4.15589328,1900.9,1900.8,1.3525]
[1743220539119,5.20842328,1900.9,1900.6,1.73637]
[1743220539330,5.20842328,1900.9,1900.7,1.3376]
[1743220539624,5.20842328,1900.9,1900.7,2.39023]
[1743220540216,4.15589328,1900.9,1900.8,1.05258]
[1743220540517,4.15589328,1900.9,1900.8,2.45658]
[1743220544020,5.20842328,1900.9,1900.8,1.404]
[1743220545127,1.05264,1900.7,1900.6,1.4019]
[1743220546723,0.70789328,1900.9,1900.8,1.05258]
[1743220546917,3.45489328,1900.9,1900.8,1.05258]
[1743220547325,3.45489328,1900.9,1900.8,2.47688]
[1743220555229,4.50742328,1900.9,1900.8,1.4243]
[1743220555638,5.83722328,1900.9,1900.8,1.4243]
[1743220556433,4.78469328,1900.9,1900.8,2.47688]
[1743220557526,0.00789328,1900.9,1900.8,2.47688]
[1743220557730,3.45489328,1900.9,1900.8,2.47688]
[1743220560331,3.45489328,1900.9,1900.8,1.4243]
[1743220560632,4.18039328,1900.9,1900.8,1.4243]
[1743220560831,5.53779328,1900.9,1900.8,2.47688]
[1743220561333,4.81229328,1900.9,1900.8,2.47688]
[1743220561734,3.45489328,1900.9,1900.8,2.47688]
[1743220565331,4.17589328,1900.9,1900.8,2.47688]
[1743220565838,5.58999328,1900.9,1900.8,2.47688]
[1743220570045,6.64252328,1900.9,1900.8,2.47688]
[1743220570242,5.58999328,1900.9,1900.8,2.47688]
[1743220571738,6.64252328,1900.9,1900.8,2.47688]
[1743220572539,6.64252328,1900.9,1900.8,1.4243]
[1743220572741,6.64252328,1900.9,1900.8,2.47688]
[1743220573143,6.64252328,1900.9,1900.8,1.4243]
[1743220573841,2.63147,1900.8,1900.4,1.05279]
[1743220574039,1.05269,1900.6,1900.5,1.05275]
[1743220574241,3.446,1900.6,1900.5,1.05275]
[1743220574537,5.5789,1900.6,1900.5,1.05275]
[1743220575145,6.63159,1900.6,1900.5,1.05275]
[1743220575836,5.5789,1900.6,1900.5,1.05275]
[1743220576036,6.63159,1900.6,1900.5,1.05275]
[1743220576548,6.63159,1900.6,1900.4,1.388]
[1743220576549,6.63161,1900.6,1900.4,2.44076]
[1743220576747,2.40945,1900.5,1900.4,1.388]
[1743220576949,2.40945,1900.5,1900.3,4.98202]
[1743220577152,1.3567,1900.5,1900.4,1.0528]
[1743220579956,52.5233,1900.7,1900.6,1.05269]
[1743220580252,52.067,1900.7,1900.6,1.05269]
[1743220581645,3.21569328,1900.9,1900.8,1.05258]
[1743220581844,6.66169328,1900.9,1900.8,1.05258]
[1743220582349,3.45389328,1900.9,1900.8,1.76948]
[1743220593253,3.45389328,1900.9,1900.8,3.20208]
[1743220593555,3.28e-06,1900.9,1900.8,13.33446812]
[1743220594058,48.622,1901.3,1901.2,1.05236]
[1743220594264,52.067,1901.3,1901.2,1.05236]
[1743220595059,53.4195,1901.3,1901.2,2.41716]
[1743220597653,52.067,1901.3,1901.2,2.41716]
[1743220599257,53.435,1901.3,1901.2,2.41716]
[1743220604070,53.435,1901.3,1901.2,2.84692265]
[1743220604670,53.435,1901.3,1901.2,2.41716]
[1743220605364,52.067,1901.3,1901.2,2.41716]
[1743220605565,52.066,1901.3,1901.2,2.83102796]
[1743220606170,52.066,1901.3,1901.2,2.41716]
[1743220608376,52.066,1901.3,1901.2,2.84275872]
[1743220609079,52.066,1901.3,1901.2,2.41716]
[1743220609580,52.066,1901.3,1901.2,2.83917197]
[1743220613382,3.444,1901.3,1901.2,2.83917197]
[1743220614983,4.1399,1901.3,1901.2,2.83917197]
[1743220616486,4.1399,1901.3,1901.2,3.36557197]
[1743220616688,4.1399,1901.3,1901.2,2.83917197]
[1743220617981,4.1399,1901.3,1901.2,3.36557197]
[1743220618386,4.1399,1901.3,1901.2,2.83917197]
[1743220618776,3.444,1901.3,1901.2,3.36557197]
[1743220618982,3.444,1901.3,1901.2,2.83917197]
[1743220619186,3.444,1901.3,1901.2,3.36557197]
[1743220619381,3.444,1901.3,1901.2,2.83917197]
[1743220620182,3.444,1901.3,1901.2,2.41716]
[1743220620586,3.444,1901.3,1901.2,2.94356]
[1743220620986,3.444,1901.3,1901.2,2.41716]
[1743220621785,3.444,1901.3,1901.2,2.94356]
[1743220622492,3.444,1901.3,1901.2,2.41716]
[1743220622889,3.444,1901.3,1901.2,2.94356]
[1743220623196,3.444,1901.3,1901.2,2.41716]
[1743220623400,3.444,1901.3,1901.2,2.94356]
[1743220623696,3.444,1901.3,1901.2,2.41716]
[1743220624497,1.05236,1901.2,1901.1,0.00789328]
[1743220624696,3.93566,1901.2,1901.1,0.00789328]
[1743220626102,3.93566,1901.2,1901.1,1.06031328]
[1743220626999,3.93566,1901.2,1901.1,0.00789328]
[1743220627997,1.05256,1900.9,1900.6,1.75485]
[1743220628203,1.05256,1900.9,1900.6,2.39415]
[1743220628204,7.3399,1900.8,1900.6,2.39415]
[1743220628496,8.7202,1900.8,1900.6,2.39415]
[1743220628704,1.3803,1900.7,1900.6,2.39415]
[1743220630904,6.6508,1900.8,1900.7,1.05264]
[1743220631104,6.6508,1900.8,1900.7,2.48754]
[1743220632398,8.0821,1900.8,1900.7,2.48754]
[1743220634906,4.8743,1900.8,1900.7,2.48754]
[1743220637115,5.92688,1900.8,1900.7,1.4349]
[1743220637312,4.8743,1900.8,1900.7,2.48754]
[1743220639306,3.443,1900.9,1900.8,1.05258]
[1743220639505,3.443,1900.9,1900.8,2.45248]
[1743220639906,4.791,1900.9,1900.8,2.45248]
[1743220640607,9.05133,1900.9,1900.8,1.3999]
[1743220640813,1.05258,1900.8,1900.7,1.05261]
[1743220641013,3.14968,1900.8,1900.7,1.05261]
[1743220641401,3.14968,1900.8,1900.6,1.05265]
[1743220641605,2.1242,1900.7,1900.6,1.05265]
[1743220641802,1.05269,1900.6,1900.5,1.3467]
[1743220642114,5.91619,1900.6,1900.5,1.3467]
[1743220642313,1.05275,1900.5,1900.4,1.05278]
[1743220642519,2.47325,1900.5,1900.4,2.39948]
[1743220642714,1.4205,1900.5,1900.4,2.39948]
[1743220643910,3.443,1900.6,1900.4,2.39948]
[1743220644112,3.443,1900.6,1900.5,2.44335]
[1743220646721,4.9023,1900.6,1900.5,2.44335]
[1743220649814,4.9023,1900.6,1900.2,4.96794982]
[1743220650123,1.05283,1900.4,1900.3,1.4294]
[1743220650518,2.41563,1900.4,1900.3,1.4294]
[1743220650717,2.41563,1900.4,1900.3,2.48226]
[1743220651827,2.41563,1900.4,1900.3,1.4294]
[1743220652027,5.62343,1900.4,1900.3,1.4294]
[1743220653626,1.05286,1900.3,1900.2,1.44585982]
[1743220653825,5.97106,1900.3,1900.2,1.44585982]
[1743220654027,5.97106,1900.3,1900.2,2.78295982]
[1743220654228,5.97106,1900.3,1900.2,1.73004982]
[1743220654826,5.97106,1900.3,1900.2,2.78296982]
[1743220655936,4.9182,1900.3,1900.2,2.78296982]
[1743220656345,5.97106,1900.3,1900.2,2.78296982]
[1743220656536,4.9182,1900.3,1900.2,2.78296982]
[1743220656946,5.97106,1900.3,1900.2,2.78296982]
[1743220658241,4.9182,1900.3,1900.2,2.78296982]
[1743220658445,5.97106,1900.3,1900.2,2.78296982]
[1743220658642,5.97106,1900.3,1900.2,1.73004982]
[1743220660944,5.97106,1900.3,1900.2,2.78296982]
[1743220662343,5.97106,1900.3,1900.2,1.73004982]
[1743220663248,4.9182,1900.3,1900.2,2.78296982]
[1743220664948,3.443,1900.3,1900.2,2.78296982]
[1743220665142,0.00789328,1900.4,1900.3,1.05286]
[1743220665343,3.45089328,1900.4,1900.3,2.44096]
[1743220665644,4.50369328,1900.4,1900.3,2.44096]
[1743220667652,4.82009328,1900.4,1900.1,2.47436]
[1743220667842,2.0973,1900.3,1900.1,3.86246]
[1743220668044,1.3692,1900.2,1900.1,3.86246]
[1743220668242,2.0365,1900.2,1900.1,3.86246]
[1743220668643,1.0529,1900.3,1900.2,1.05292]
[1743220668844,1.0529,1900.3,1900.2,2.39492]
[1743220669347,3.45089328,1900.4,1900.2,2.39492]
[1743220669550,5.92659328,1900.4,1900.3,1.342]
[1743220670448,3.44989328,1900.4,1900.3,2.39486]
[1743220672753,4.50269328,1900.4,1900.3,1.342]
[1743220672960,6.54439328,1900.4,1900.3,1.342]
[1743220673857,6.54439328,1900.4,1900.3,2.39486]
[1743220674859,6.54439328,1900.4,1900.3,1.342]
[1743220675458,6.54439328,1900.4,1900.3,2.39486]
[1743220677055,5.49159328,1900.4,1900.1,1.8133192]
[1743220677262,1.4298,1900.3,1900.2,1.385]
[1743220677653,2.48266,1900.3,1900.2,1.385]
[1743220678150,2.48266,1900.3,1900.2,2.43792]
[1743220678454,2.48266,1900.3,1900.2,1.385]
[1743220678761,2.48266,1900.3,1900.2,2.43792]
[1743220679059,2.48266,1900.3,1900.2,1.385]
[1743220680458,1.4298,1900.3,1900.2,2.43792]
[1743220680656,5.17490328,1900.4,1900.2,2.43792]
[1743220680857,6.56910328,1900.4,1900.3,1.3787]
[1743220681260,5.89690328,1900.4,1900.3,1.3787]
[1743220681461,3.44989328,1900.4,1900.3,1.3787]
[1743220681657,3.44989328,1900.4,1900.3,2.43156]
[1743220682664,4.50269328,1900.4,1900.3,2.43156]
[1743220684360,5.89599328,1900.4,1900.3,2.43156]
[1743220684864,5.89599328,1900.4,1900.3,1.3787]
[1743220685061,5.89599328,1900.4,1900.1,1.1224192]
[1743220685062,1.05292,1900.2,1900.1,1.1224192]
[1743220685257,1.05292,1900.2,1899.9,1.05306]
[1743220685258,3.2078,1900.2,1899.9,1.05306]
[1743220685459,5.88827,1900.1,1900.0,1.3729]
[1743220686264,5.88827,1900.1,1900.0,1.76293031]
[1743220689064,5.88827,1900.1,1900.0,2.81596031]
[1743220689765,5.88827,1900.1,1900.0,2.42593]
[1743220690071,4.8353,1900.1,1900.0,2.42593]
[1743220690268,1.3933,1900.1,1900.0,2.42593]
[1743220690470,4.8353,1900.1,1900.0,2.42593]
[1743220690672,4.8353,1900.1,1900.0,2.81127739]
[1743220691170,5.88827,1900.1,1900.0,2.81127739]
[1743220691971,3.442,1900.1,1900.0,2.81127739]
[1743220692276,4.49497,1900.1,1900.0,2.81127739]
[1743220693475,5.93567,1900.1,1900.0,2.81127739]
[1743220693776,5.93567,1900.1,1900.0,1.75824739]
[1743220694374,1.05308,1899.9,1899.8,0.7336]
[1743220694675,1.05308,1899.9,1899.8,2.58995333]
[1743220695178,2.49378,1899.9,1899.8,2.1943]
[1743220695477,5.70158,1899.9,1899.8,2.1943]
[1743220696873,3.2078,1899.9,1899.8,2.1943]
[1743220697083,3.2078,1900.7,1900.0,1.05303]
[1743220697375,3.441,1900.6,1900.5,1.05275]
[1743220697574,3.441,1900.6,1900.5,1.05273]
[1743220698283,4.49369,1900.6,1900.4,1.76167]
[1743220698576,1.3517,1900.5,1900.4,1.76956328]
[1743220699175,2.40445,1900.5,1900.4,0.71679328]
[1743220699373,2.40445,1900.5,1900.4,0.00789328]
[1743220699580,5.61225,1900.5,1900.4,0.00789328]
[1743220702376,1.05303,1900.0,1899.8,1.08084049]
[1743220702569,3.441,1899.9,1899.8,2.13398049]
[1743220703872,4.9045,1899.9,1899.8,1.08084049]
[1743220704482,9.16538,1899.9,1899.8,0.6842]
[1743220708778,5.95758,1899.9,1899.8,0.6842]
[1743220709186,9.16538,1899.9,1899.8,0.6842]
[1743220709787,9.16538,1899.9,1899.7,2.11293114]
[1743220709989,2.48674,1899.8,1899.7,1.05974114]
[1743220710285,2.48674,1899.8,1899.7,0.38944114]
[1743220710488,1.05321,1899.7,1899.5,2.44787]
[1743220710678,3.441,1899.6,1899.5,2.44787]
[1743220711084,4.49425,1899.6,1899.5,1.3946]
[1743220711285,6.60085,1899.6,1899.5,1.3946]
[1743220713180,6.60085,1899.6,1899.5,2.7549]
[1743220713788,6.60085,1899.6,1899.5,2.0493]
[1743220713989,6.60085,1899.6,1899.5,1.3603]
[1743220714191,7.31025,1899.6,1899.5,1.3603]
[1743220715389,1.05334,1899.5,1899.3,1.7538]
[1743220715590,5.59734,1899.5,1899.3,1.7538]
[1743220715889,0.00789328,1899.7,1899.6,1.05325]
[1743220716088,3.44889328,1899.7,1899.6,1.05325]
[1743220716479,3.44889328,1899.7,1899.5,0.6869]
[1743220716480,4.50208328,1899.7,1899.5,1.74016]
[1743220716787,3.44889328,1899.7,1899.6,0.6898]
[1743220716990,3.44889328,1899.7,1899.5,0.6869]
[1743220717186,2.41485,1899.6,1899.5,0.6869]
[1743220717785,2.41485,1899.6,1899.5,1.7402]
[1743220718589,2.41485,1899.6,1899.5,2.1449]
[1743220719291,1.05336,1899.4,1899.3,0.39376608]
[1743220719490,1.05341,1899.3,1899.2,2.1783]
[1743220719792,1.4476,1899.3,1899.2,3.23177]
[1743220720395,1.4476,1899.3,1899.2,3.63225025]
[1743220720597,1.4476,1899.3,1899.0,3.2078]
[1743220720799,1.4476,1899.3,1899.2,1.05347]
[1743220721296,1.4476,1899.3,1899.2,2.43857]
[1743220721895,2.50101,1899.3,1899.2,1.3851]
[1743220722886,1.4476,1899.3,1899.2,1.3851]
[1743220723297,1.4476,1899.3,1899.2,2.43857]
[1743220724398,3.21569328,1899.7,1899.2,4.5929]
[1743220724601,3.442,1899.6,1899.2,3.2078]
[1743220724900,3.442,1899.6,1899.5,1.0533]
[1743220726102,4.49525,1899.6,1899.2,3.2078]
[1743220726302,5.87105,1899.6,1899.4,1.05332]
[1743220726599,5.87105,1899.6,1899.5,1.3926]
[1743220727802,4.8178,1899.6,1899.5,2.4459]
[1743220728002,5.87105,1899.6,1899.5,2.4459]
[1743220728505,5.87105,1899.6,1899.5,1.3926]
[1743220728804,4.8178,1899.6,1899.5,2.4459]
[1743220729303,5.87105,1899.6,1899.5,1.3926]
[1743220731104,1.05325,1899.6,1899.5,1.3926]
[1743220731300,3.21569328,1899.7,1899.6,1.05325]
[1743220731604,6.65769328,1899.7,1899.6,1.05325]
[1743220732906,7.71091328,1899.7,1899.5,2.44586]
[1743220733105,1.05325,1899.6,1899.5,1.3926]
[1743220733302,2.39535,1899.6,1899.5,1.3926]
[1743220734707,5.60315,1899.6,1899.5,1.3926]
[1743220736703,4.5499,1899.6,1899.5,2.4459]
[1743220737204,0.00789328,1899.7,1899.6,1.05325]
[1743220737407,3.44989328,1899.7,1899.6,1.05325]
[1743220738205,0.00789328,1899.7,1899.6,1.05325]
[1743220738501,3.44989328,1899.7,1899.6,1.05325]
[1743220743211,3.44989328,1899.7,1899.6,2.50155]
[1743220745711,0.00789328,1899.7,1899.6,2.50155]
[1743220745916,3.44889328,1899.7,1899.6,2.50155]
[1743220746521,0.00789328,1899.7,1899.6,2.50155]
[1743220746816,3.44889328,1899.7,1899.6,2.50155]
[1743220747915,0.00789328,1899.7,1899.6,2.50155]
[1743220748116,3.44889328,1899.7,1899.6,5.70935]
[1743220748307,3.44889328,1899.7,1899.6,2.50155]
[1743220749610,4.88659328,1899.7,1899.6,2.50155]
[1743220751919,4.88659328,1899.7,1899.5,1.3926]
[1743220752114,2.47355,1899.6,1899.4,2.49053]
[1743220752312,1.4203,1899.5,1899.4,2.49053]
[1743220754418,1.4203,1899.5,1899.4,1.05336]
[1743220755017,1.4203,1899.5,1899.4,2.44376]
[1743220756821,6.65669328,1899.7,1899.6,1.05325]
[1743220757417,8.03809328,1899.7,1899.6,1.05325]
[1743220757618,4.59709328,1899.7,1899.6,1.05325]
[1743220757922,8.03809328,1899.7,1899.6,1.05325]
[1743220758121,9.09128328,1899.7,1899.6,1.05325]
[1743220758317,8.03809328,1899.7,1899.6,1.05325]
[1743220758822,9.09128328,1899.7,1899.6,1.05325]
[1743220759024,8.03809328,1899.7,1899.6,1.05325]
[1743220760425,9.09128328,1899.7,1899.6,1.05325]
[1743220760628,8.03809328,1899.7,1899.6,1.05325]
[1743220760826,8.03809328,1899.7,1899.6,2.46165]
[1743220761928,9.09128328,1899.7,1899.6,2.46165]
[1743220762229,8.03809328,1899.7,1899.6,2.46165]
[1743220763225,9.09128328,1899.7,1899.6,2.46165]
[1743220766919,8.03809328,1899.7,1899.6,2.46165]
[1743220767120,9.09128328,1899.7,1899.6,2.46165]
[1743220767630,4.83029328,1899.7,1899.6,2.46165]
[1743220768425,8.03809328,1899.7,1899.5,2.44638]
[1743220768628,1.3545,1899.6,1899.5,2.44638]
[1743220770830,2.40775,1899.6,1899.5,2.44638]
[1743220772628,1.3545,1899.6,1899.5,2.44638]
[1743220775431,2.40775,1899.6,1899.5,2.44638]
[1743220775621,1.3545,1899.6,1899.5,2.44638]
[1743220779330,4.7955,1899.6,1899.5,2.44638]
[1743220780227,0.00789328,1899.7,1899.6,1.05325]
[1743220780430,48.648,1899.9,1899.8,1.05314]
[1743220780731,52.088,1899.9,1899.8,1.05314]
[1743220781119,52.088,1899.9,1899.8,2.39924]
[1743220781731,48.648,1899.9,1899.8,2.39924]
[1743220781933,52.088,1899.9,1899.8,2.39924]
[1743220782132,48.648,1899.9,1899.8,2.39924]
[1743220782635,52.088,1899.9,1899.8,2.39924]
[1743220783331,52.088,1899.9,1899.8,3.10570741]
[1743220783734,52.088,1899.9,1899.8,2.39924]
[1743220784034,52.088,1899.9,1899.8,3.10570597]
[1743220784330,52.088,1899.9,1899.8,2.39924]
[1743220785034,52.088,1899.9,1899.8,3.10569477]
[1743220785235,52.088,1899.9,1899.8,2.39924]
[1743220786137,52.088,1899.9,1899.8,3.10565911]
[1743220786330,52.088,1899.9,1899.8,2.39924]
[1743220786637,52.088,1899.9,1899.8,3.10567021]
[1743220786824,52.088,1899.9,1899.8,2.39924]